bitfinex/quotes_ETHUSD_20250223
["timestamp","ask_amount","ask_price","bid_price","bid_amount"]
[1740346800497,0.7703,2807.4,2807.1,3.5623]
[1740346802345,0.72350553,2807.2,2807.0,3.56251]
[1740346803746,0.72350553,2807.2,2806.6,0.55]
[1740346804041,3.56252,2807.0,2806.5,3.56306]
[1740346804203,4.35969,2807.1,2806.6,3.56302]
[1740346805004,4.35969,2807.1,2806.5,3.56306]
[1740346805005,0.72350553,2807.2,2806.9,3.56254]
[1740346807709,0.72350553,2807.2,2807.1,3.56239]
[1740346809922,0.72350553,2807.2,2807.0,3.56244]
[1740346812281,0.7973,2807.4,2806.9,3.56254]
[1740346812483,4.35932,2807.4,2806.9,3.56254]
[1740346813664,3.56214,2807.3,2806.9,3.56254]
[1740346814387,3.56214,2807.3,2806.7,4.37844]
[1740346814556,3.56228,2807.2,2806.7,4.37843]
[1740346814854,3.56228,2807.2,2806.7,5.172583]
[1740346815884,3.56242,2807.1,2806.7,5.172583]
[1740346816087,0.72888939,2807.0,2806.7,5.172583]
[1740346820447,0.72888939,2807.0,2806.8,0.11150936]
[1740346821792,0.72888939,2807.0,2806.7,5.172583]
[1740346821960,0.72888939,2807.0,2806.8,0.5172583]
[1740346823362,0.72888939,2807.0,2806.8,4.0800183]
[1740346823987,0.72888939,2807.0,2806.8,0.5172583]
[1740346825090,0.72888939,2807.0,2806.9,0.11150569]
[1740346825262,0.72888939,2807.0,2806.9,3.67414569]
[1740346825466,3.56214,2807.3,2806.9,0.96847709]
[1740346825653,0.71529502,2807.1,2806.9,0.96847709]
[1740346826596,0.71529502,2807.1,2806.9,0.8569714]
[1740346827688,0.71529502,2807.1,2806.7,4.37848]
[1740346829246,0.8029,2807.0,2806.4,0.8249]
[1740346829485,3.56272,2806.9,2806.4,4.38811]
[1740346829687,0.8029,2807.0,2806.8,0.11150842]
[1740346830349,4.36543,2807.0,2806.8,0.11150842]
[1740346831293,4.36543,2807.0,2806.5,3.56313]
[1740346831493,4.36543,2807.0,2806.5,4.413254]
[1740346831994,0.8029,2807.0,2806.6,3.56301]
[1740346832179,0.8029,2807.0,2806.6,7.12588]
[1740346832382,0.8029,2807.0,2806.6,3.56293]
[1740346832758,0.8029,2807.0,2806.7,0.11151016]
[1740346833702,0.8029,2807.0,2806.7,3.67440016]
[1740346834053,0.8029,2807.0,2806.7,3.56289]
[1740346834255,0.71529502,2807.1,2806.9,3.56264]
[1740346837608,0.71529502,2807.1,2806.7,5.1317064]
[1740346837807,0.71529502,2807.1,2806.8,3.56275]
[1740346838317,0.71529502,2807.1,2806.7,5.1317064]
[1740346838609,0.71529502,2807.1,2806.9,3.56258]
[1740346846821,0.71529502,2807.1,2806.9,7.12514]
[1740346847188,0.71529502,2807.1,2806.9,3.56256]
[1740346848228,0.71529502,2807.1,2806.5,0.850124]
[1740346848229,0.805,2807.0,2806.5,0.850124]
[1740346848417,0.805,2807.0,2806.1,0.8087]
[1740346848418,3.56332,2806.4,2806.1,0.8087]
[1740346848649,0.7549,2806.3,2805.9,3.56381]
[1740346849326,0.7549,2806.3,2806.0,0.55]
[1740346849538,0.7549,2806.3,2806.0,0.849884]
[1740346850763,3.56363,2806.2,2806.1,0.1115358]
[1740346852389,3.56363,2806.2,2805.9,0.1115358]
[1740346854257,3.56363,2806.2,2805.8,0.1115358]
[1740346854554,3.56363,2806.2,2805.8,3.6755558]
[1740346855022,4.26387833,2806.2,2805.8,3.6755558]
[1740346855461,0.70024833,2806.2,2805.8,3.6755558]
[1740346855648,0.70024833,2806.2,2805.8,4.31098336]
[1740346855958,0.70024833,2806.2,2805.9,3.5639]
[1740346860602,0.70024833,2806.2,2805.8,0.63548756]
[1740346860897,4.26377833,2806.2,2805.8,4.11404]
[1740346864653,0.70024833,2806.2,2805.8,4.11404]
[1740346864957,0.70024833,2806.2,2805.8,5.01663398]
[1740346865542,0.70024833,2806.2,2805.9,3.5639]
[1740346866883,0.70024833,2806.2,2805.9,3.56383]
[1740346867344,0.70024833,2806.2,2805.9,7.12769]
[1740346867548,0.70024833,2806.2,2805.9,3.56383]
[1740346868342,0.70024833,2806.2,2805.8,5.78352398]
[1740346869158,0.70024833,2806.2,2806.0,3.56376]
[1740346871383,0.70024833,2806.2,2805.8,2.21949398]
[1740346871545,0.70024833,2806.2,2805.8,4.11403]
[1740346871749,0.8025,2806.1,2805.8,4.11403]
[1740346873047,0.8025,2806.1,2805.4,5.16601984]
[1740346873048,0.8025,2806.1,2805.6,3.56428]
[1740346873248,4.36616,2806.1,2805.7,3.56416]
[1740346874191,4.36616,2806.1,2805.6,7.1064959]
[1740346875785,4.36616,2806.1,2805.7,0.11154877]
[1740346875989,0.8025,2806.1,2805.7,0.11154877]
[1740346876292,0.8025,2806.1,2805.8,3.56395]
[1740346877492,0.70024833,2806.2,2806.0,3.56373]
[1740346878899,0.70024833,2806.2,2806.1,0.11154877]
[1740346885909,0.70024833,2806.2,2806.1,4.22520877]
[1740346886211,0.7748,2806.7,2806.5,3.56315]
[1740346886407,0.7748,2806.7,2806.6,3.56303]
[1740346886611,0.7748,2806.9,2806.8,3.5627]
[1740346886810,0.7748,2806.9,2806.7,3.56287]
[1740346887011,1.47646171,2806.9,2806.7,3.56287]
[1740346887420,1.47646171,2806.9,2806.8,3.56277]
[1740346887926,0.70166171,2806.9,2806.8,3.56277]
[1740346890723,0.759,2807.4,2807.1,3.56232]
[1740346891023,0.71643729,2807.4,2807.3,3.56214]
[1740346902308,0.71643729,2807.4,2807.1,3.56239]
[1740346902509,0.8311,2807.3,2806.9,3.56258]
[1740346904010,0.8311,2807.3,2806.8,0.55]
[1740346904255,0.8311,2807.3,2807.2,3.56226]
[1740346904804,0.71643729,2807.4,2807.3,3.56214]
[1740346911473,3.56228,2807.2,2806.7,3.56284]
[1740346911646,0.7738,2807.1,2806.7,3.56284]
[1740346916474,5.126095,2807.1,2806.7,3.56284]
[1740346916662,3.56252,2807.0,2806.6,6.56302]
[1740346916848,5.126105,2807.1,2806.6,6.56302]
[1740346918550,5.126105,2807.1,2806.7,0.11151076]
[1740346919776,5.126105,2807.1,2806.7,3.67439076]
[1740346919930,5.126105,2807.1,2806.7,3.56288]
[1740346920733,5.126095,2807.1,2806.7,3.56288]
[1740346923238,0.71280486,2806.8,2806.7,3.56288]
[1740346925588,0.71280486,2806.8,2806.7,3.67439107]
[1740346926386,0.71280486,2806.8,2806.7,0.11151107]
[1740346938874,0.71280486,2806.8,2806.7,3.67441107]
[1740346952910,0.71280486,2806.8,2806.7,0.11151107]
[1740346975333,0.71280486,2806.8,2806.7,4.46391107]
[1740346975535,1.04765272,2807.1,2806.7,0.90101107]
[1740346975834,0.71075299,2807.0,2806.8,3.56275]
[1740346977126,0.71075299,2807.0,2806.8,7.12544]
[1740346977438,0.71075299,2807.0,2806.9,0.11151107]
[1740346977625,0.71075299,2807.0,2806.9,3.67415107]
[1740346983116,0.71075299,2807.0,2806.9,4.67051618]
[1740346983316,3.56105,2808.2,2806.9,4.67051618]
[1740346983317,3.561,2808.2,2807.7,3.56163]
[1740346983520,0.70044991,2807.9,2807.7,3.56163]
[1740346983842,0.8023,2808.1,2807.8,3.56143]
[1740346984035,1.40753,2808.1,2807.8,3.56143]
[1740346984246,0.72428347,2808.2,2807.7,1.34857782]
[1740346984416,0.72428347,2808.2,2808.1,3.56112]
[1740346984940,0.26765068,2808.4,2808.3,3.56079]
[1740346985518,0.26765068,2808.4,2808.1,3.561]
[1740346986542,0.26765068,2808.4,2808.2,3.56096]
[1740346987112,0.96903946,2808.4,2808.0,7.93568]
[1740346987306,0.96903946,2808.4,2808.0,0.8133]
[1740346987580,3.56096,2808.3,2807.7,3.56154]
[1740346987718,0.8023,2808.2,2807.7,3.56154]
[1740346987921,0.8023,2808.2,2807.9,3.56136]
[1740346988319,2.30453741,2808.4,2807.9,3.5613]
[1740346988523,1.77133946,2808.4,2807.8,0.55]
[1740346988835,1.77133946,2808.4,2808.1,3.56103]
[1740346989266,1.77133946,2808.4,2808.1,7.12209]
[1740346989562,0.96903946,2808.4,2808.2,3.56091]
[1740346992153,0.70138878,2808.4,2808.2,3.56091]
[1740346993055,0.70138878,2808.4,2808.1,4.38203]
[1740346993358,0.70138878,2808.4,2807.8,3.88766778]
[1740346993359,4.34354,2808.3,2807.8,3.88766778]
[1740346994557,4.34354,2808.3,2807.8,3.56148]
[1740346996841,4.34354,2808.3,2807.9,3.56137]
[1740346997359,4.34354,2808.3,2807.8,3.56142]
[1740346997579,4.34354,2808.3,2807.8,3.56141]
[1740346997723,0.7826,2808.3,2807.7,0.55]
[1740346997925,0.7826,2808.3,2808.0,3.56118]
[1740346998754,0.70138878,2808.4,2808.1,3.56103]
[1740347003250,0.70138878,2808.4,2808.2,3.56099]
[1740347003451,0.70138878,2808.4,2808.2,3.56091]
[1740347009662,0.70138878,2808.4,2808.2,7.12184]
[1740347010168,0.70138878,2808.4,2808.2,3.56091]
[1740347015380,0.70138878,2808.4,2808.2,7.12185]
[1740347016181,0.70138878,2808.4,2808.2,3.56091]
[1740347018401,0.70138878,2808.4,2808.2,7.12185]
[1740347019019,0.70138878,2808.4,2808.2,3.56091]
[1740347021029,0.70138878,2808.4,2808.3,4.11087]
[1740347021216,0.27256774,2808.7,2808.3,1.3161]
[1740347021530,0.27256774,2808.7,2808.6,3.56049]
[1740347021731,0.27256774,2808.7,2808.4,3.56065]
[1740347022097,0.99049889,2808.7,2808.4,3.56065]
[1740347022300,0.99049889,2808.7,2808.3,1.42754126]
[1740347022301,4.55095889,2808.7,2808.3,1.42754126]
[1740347022502,3.56054,2808.6,2808.3,0.66144126]
[1740347023218,3.56054,2808.6,2808.3,0.55]
[1740347023730,4.55095889,2808.7,2808.3,0.55]
[1740347024839,4.38688,2808.5,2808.1,0.7661]
[1740347025004,3.56077,2808.4,2807.9,3.7661]
[1740347025206,3.5609,2808.3,2807.9,5.437703]
[1740347025406,3.56077,2808.4,2808.0,0.55]
[1740347025611,3.56094,2808.3,2807.9,3.0]
[1740347025827,0.8262,2808.5,2807.9,3.0]
[1740347026013,4.38687,2808.5,2808.0,3.56117]
[1740347026944,0.8262,2808.5,2808.0,3.56117]
[1740347027145,3.56074,2808.4,2808.1,0.11145117]
[1740347027945,4.3869,2808.5,2808.1,0.11145117]
[1740347029203,0.69695283,2808.2,2808.0,4.32727]
[1740347029403,0.69695283,2808.2,2808.0,6.13369078]
[1740347029749,0.69695283,2808.2,2808.0,2.57252078]
[1740347030720,0.69695283,2808.2,2808.1,0.11145009]
[1740347038041,5.06914283,2808.2,2808.1,0.11145009]
[1740347038655,3.56128,2808.0,2807.7,0.55]
[1740347040224,3.56128,2808.0,2807.8,0.11146735]
[1740347040368,5.06914283,2808.2,2807.8,0.11146735]
[1740347040564,3.56112,2808.1,2807.8,0.11146735]
[1740347041130,5.06914283,2808.2,2807.8,0.11146735]
[1740347041337,3.56126,2808.0,2807.8,0.11146735]
[1740347041532,5.72115782,2807.9,2807.8,0.11146735]
[1740347041853,5.72115782,2807.9,2806.9,1.23976511]
[1740347041854,4.37315,2807.5,2807.1,3.56231]
[1740347042802,3.56225,2807.3,2806.9,0.7934]
[1740347043066,3.56225,2807.3,2807.2,0.11148666]
[1740347044456,4.37345,2807.3,2807.2,0.11148666]
[1740347044655,3.56246,2807.1,2806.7,0.11148666]
[1740347044857,7.12493,2807.1,2806.7,0.11148666]
[1740347045291,3.56246,2807.1,2806.7,0.11148666]
[1740347045784,3.56246,2807.1,2806.7,1.26957933]
[1740347045991,3.56246,2807.1,2806.7,4.83246933]
[1740347046537,4.37342,2807.3,2806.8,0.11148666]
[1740347046737,3.56226,2807.2,2806.8,0.11148666]
[1740347047181,5.35597874,2807.3,2806.8,3.67416666]
[1740347047371,3.56229,2807.2,2806.8,1.33034159]
[1740347047657,3.56229,2807.2,2806.8,0.11148666]
[1740347048077,3.56229,2807.2,2806.7,7.12572]
[1740347048257,3.56229,2807.2,2806.7,3.56283]
[1740347048589,3.56229,2807.2,2806.7,7.12567]
[1740347048942,3.56229,2807.2,2806.7,7.12564]
[1740347049166,3.56229,2807.2,2806.8,3.56277]
[1740347049980,3.56229,2807.2,2806.7,1.146904]
[1740347050276,7.12463,2807.2,2806.7,4.709744]
[1740347051097,3.56229,2807.2,2806.7,4.709744]
[1740347051472,3.56239,2807.1,2806.7,4.709744]
[1740347055656,0.71511911,2806.8,2806.7,5.259744]
[1740347059199,0.71511911,2806.8,2806.7,4.11284]
[1740347065033,0.71511911,2806.8,2806.7,4.22434179]
[1740347065886,0.71511911,2806.8,2806.7,0.66150179]
[1740347066387,0.71511911,2806.8,2806.7,0.55]
[1740347066835,0.71511911,2806.8,2806.4,0.767]
[1740347067130,0.71511911,2806.8,2806.2,1.34857782]
[1740347067131,4.27794911,2806.8,2806.3,3.56334]
[1740347067286,4.27788911,2806.8,2806.4,3.0]
[1740347068234,4.27788911,2806.8,2806.4,6.56327]
[1740347068713,4.27788911,2806.8,2806.5,0.11151499]
[1740347068714,0.71511911,2806.8,2806.5,0.11151499]
[1740347069031,0.7567,2806.9,2806.5,3.67459499]
[1740347069931,1.48213667,2806.9,2806.6,0.11151499]
[1740347070792,5.04481667,2806.9,2806.6,0.11151499]
[1740347071596,5.04481667,2806.9,2806.7,0.11151499]
[1740347072039,1.48213667,2806.9,2806.7,0.11151499]
[1740347073127,1.48213667,2806.9,2806.8,0.11151499]
[1740347074316,1.48213667,2806.9,2806.6,3.56301]
[1740347075568,1.48213667,2806.9,2806.7,0.11150785]
[1740347076535,1.48213667,2806.9,2806.8,0.11150785]
[1740347086736,1.48213667,2806.9,2806.8,3.67427785]
[1740347086955,6.3125837,2807.3,2806.8,4.39800764]
[1740347087240,6.3125837,2807.3,2806.9,3.56263]
[1740347087470,0.69674002,2807.1,2806.9,3.56263]
[1740347088876,0.69674002,2807.1,2806.7,4.35018]
[1740347089280,0.69674002,2807.1,2806.7,7.91299]
[1740347089486,0.69674002,2807.1,2806.8,3.56276]
[1740347090385,5.70559782,2807.0,2806.9,0.1115074]
[1740347091685,5.70559782,2807.0,2806.4,3.0]
[1740347091859,0.7945,2806.9,2806.4,3.0]
[1740347092177,1.34857782,2806.8,2806.2,4.35671]
[1740347092385,4.35746,2806.7,2806.2,4.35671]
[1740347092851,4.35746,2806.7,2806.3,0.11152038]
[1740347093581,0.7945,2806.7,2806.3,3.67492038]
[1740347094287,0.7945,2806.7,2806.4,0.11152038]
[1740347095787,0.7945,2806.7,2806.5,0.11152038]
[1740347096685,4.94606108,2806.7,2806.5,0.11152038]
[1740347097465,4.94606108,2806.7,2806.2,3.56352]
[1740347097665,4.35746,2806.7,2806.2,3.56352]
[1740347098285,4.35746,2806.7,2806.1,4.11365]
[1740347098586,4.35746,2806.7,2806.3,0.11152295]
[1740347099289,0.73148623,2806.6,2806.3,0.11152295]
[1740347099975,0.73148623,2806.6,2806.4,0.11152295]
[1740347101490,0.73148623,2806.6,2806.5,0.11152295]
[1740347106592,5.71883782,2807.2,2806.7,3.56284]
[1740347106890,5.71883782,2807.2,2806.7,4.31514]
[1740347107089,5.71883782,2807.2,2806.7,4.31511]
[1740347107293,0.808,2807.2,2806.9,3.56261]
[1740347107498,0.808,2807.2,2806.8,3.56268]
[1740347108037,1.53021131,2807.2,2806.8,3.56268]
[1740347110988,2.87878913,2807.2,2806.8,3.56268]
[1740347112115,2.87878913,2807.2,2806.7,0.7523]
[1740347112281,4.91116782,2807.0,2806.5,1.3207]
[1740347112475,4.36065,2806.9,2806.4,3.56318]
[1740347114220,4.36065,2806.9,2806.5,0.11151615]
[1740347115619,4.36065,2806.9,2806.6,0.11151615]
[1740347116499,0.7287091,2806.7,2806.6,0.11151615]
[1740347116994,0.7287091,2806.7,2806.6,3.67454615]
[1740347117212,0.7671,2807.1,2806.6,4.59200077]
[1740347117520,0.71629157,2806.8,2806.6,4.22454615]
[1740347117718,0.71629157,2806.8,2806.7,0.11151615]
[1740347118491,0.71629157,2806.8,2806.7,3.67441615]
[1740347119636,0.71629157,2806.8,2806.7,0.11151615]
[1740347127549,0.7671,2807.1,2806.7,0.11151615]
[1740347127550,4.32949,2807.1,2806.7,0.11151615]
[1740347127705,0.70018304,2807.0,2806.7,0.11151615]
[1740347129654,0.70018304,2807.0,2806.8,0.11151615]
[1740347131109,0.70018304,2807.0,2806.7,3.56288]
[1740347133348,0.70018304,2807.0,2806.6,0.55]
[1740347133540,4.26271304,2807.0,2806.6,4.11301]
[1740347133913,4.26271304,2807.0,2806.7,0.11151369]
[1740347134240,0.8167,2806.8,2806.7,0.11151369]
[1740347134444,4.91134782,2806.8,2806.7,0.11151369]
[1740347134649,5.72804782,2806.8,2806.7,0.11151369]
[1740347135242,2.16527782,2806.8,2806.1,3.56363]
[1740347135449,4.91170782,2806.6,2806.1,3.56363]
[1740347136847,1.34857782,2806.6,2806.2,3.56353]
[1740347137011,1.34857782,2806.6,2806.2,3.67505766]
[1740347137347,1.51526745,2806.7,2806.4,3.56328]
[1740347137646,0.69856745,2806.7,2806.4,3.56328]
[1740347138748,0.69856745,2806.7,2806.3,4.32999]
[1740347138947,0.69856745,2806.7,2806.2,0.55]
[1740347139249,0.8167,2806.6,2806.2,0.55]
[1740347139413,4.37982,2806.6,2806.2,0.55]
[1740347140112,4.37982,2806.6,2806.2,4.11353]
[1740347140456,4.37982,2806.6,2806.3,0.11152467]
[1740347141311,0.69856745,2806.7,2806.3,3.67482467]
[1740347141538,0.69856745,2806.7,2806.4,3.56321]
[1740347142150,0.69856745,2806.7,2806.4,3.67473467]
[1740347142355,0.69856745,2806.7,2806.4,0.11152467]
[1740347143153,0.69856745,2806.7,2806.5,0.11152467]
[1740347144054,0.69856745,2806.7,2806.3,7.12662]
[1740347144351,0.69856745,2806.7,2806.3,7.12664]
[1740347144851,0.8167,2806.6,2806.2,4.11352]
[1740347145249,0.8167,2806.6,2806.3,3.56334]
[1740347145573,0.8167,2806.6,2806.2,4.11351]
[1740347145854,0.8167,2806.6,2806.3,0.11152184]
[1740347146344,3.56317,2806.5,2806.3,0.11152184]
[1740347146651,3.56328,2806.4,2806.3,0.11152184]
[1740347147250,3.56317,2806.5,2806.3,0.11152184]
[1740347148247,0.8167,2806.4,2806.3,0.11152184]
[1740347148547,5.72855782,2806.4,2806.3,0.11152184]
[1740347149370,5.72855782,2806.4,2805.9,0.11152184]
[1740347149570,3.56356,2806.2,2805.9,0.11152184]
[1740347149982,1.34857782,2806.2,2805.9,0.11152184]
[1740347150140,0.7679,2806.1,2805.9,0.11152184]
[1740347151378,0.7679,2806.1,2805.8,3.56404]
[1740347151848,0.7679,2806.1,2805.7,3.56415]
[1740347151849,4.33161,2806.1,2805.7,3.56415]
[1740347152059,0.7679,2806.1,2805.7,3.56415]
[1740347152397,0.7679,2806.1,2805.7,3.56409]
[1740347152698,0.7679,2806.1,2805.8,0.11154415]
[1740347154175,0.7679,2806.1,2806.0,3.56379]
[1740347154373,1.05322069,2806.4,2806.3,3.56341]
[1740347160170,0.72705337,2806.5,2806.4,3.56328]
[1740347160491,1.34857782,2806.8,2806.7,3.5629]
[1740347160492,2.39097782,2806.8,2806.7,3.5629]
[1740347161276,2.86051912,2806.8,2806.7,3.5629]
[1740347161476,0.7904,2807.1,2806.4,0.55]
[1740347161677,0.7904,2807.1,2807.0,3.56252]
[1740347162565,1.51879409,2807.3,2807.0,3.56252]
[1740347162807,0.26120894,2807.6,2807.4,3.56194]
[1740347162970,0.95947932,2807.6,2807.3,3.56207]
[1740347163481,0.95947932,2807.6,2807.2,3.56226]
[1740347163482,2.30805714,2807.6,2807.2,3.56226]
[1740347163791,3.5619,2807.5,2807.0,3.56246]
[1740347163997,4.38542,2807.4,2807.0,3.56246]
[1740347164898,0.8234,2807.4,2807.1,3.56233]
[1740347165555,0.8234,2807.4,2806.9,0.1114983]
[1740347165556,0.8234,2807.4,2807.2,3.56224]
[1740347165756,0.95947932,2807.6,2807.3,3.56214]
[1740347165995,1.78287932,2807.6,2807.3,3.56214]
[1740347166192,2.59539173,2807.6,2807.3,3.56214]
[1740347167113,5.25,2807.7,2807.5,3.56188]
[1740347167260,5.25,2807.7,2807.1,0.55]
[1740347167461,5.25,2807.7,2807.4,3.562]
[1740347167969,5.25,2807.7,2807.2,3.56226]
[1740347167970,3.56177,2807.6,2807.2,3.56226]
[1740347168941,9.08452096,2807.7,2807.1,0.55]
[1740347169149,3.56188,2807.6,2807.1,4.11237]
[1740347169640,3.56188,2807.6,2807.2,3.56226]
[1740347170415,3.56186,2807.6,2807.1,4.11239]
[1740347172416,3.56186,2807.6,2807.2,3.56225]
[1740347172617,3.56164,2807.7,2807.2,3.56225]
[1740347172813,5.36846003,2807.8,2807.3,3.56204]
[1740347173651,3.56163,2807.7,2807.3,3.56204]
[1740347175350,3.56163,2807.7,2807.2,3.56226]
[1740347175547,3.56178,2807.6,2807.2,3.56226]
[1740347177219,3.56178,2807.6,2807.1,4.11237]
[1740347177423,3.56184,2807.6,2807.1,4.11237]
[1740347179526,0.72295775,2807.3,2807.1,4.11237]
[1740347179728,0.72295775,2807.3,2807.1,4.957815]
[1740347180457,1.49005775,2807.3,2806.7,3.818]
[1740347180610,5.05226775,2807.3,2806.7,3.818]
[1740347180954,8.61449775,2807.3,2806.8,3.5627]
[1740347181114,3.56239,2807.2,2806.7,7.38079]
[1740347182411,1.49005775,2807.3,2806.8,3.56277]
[1740347182704,1.49005775,2807.3,2806.8,3.56268]
[1740347182705,5.05220775,2807.3,2806.8,3.56268]
[1740347183021,5.05220775,2807.3,2806.9,3.56262]
[1740347184580,1.49005775,2807.3,2807.0,3.56251]
[1740347184744,1.49005775,2807.3,2807.0,3.56245]
[1740347186353,1.49005775,2807.3,2806.9,0.11149436]
[1740347186667,5.05219775,2807.3,2806.9,3.67412436]
[1740347187468,1.49005775,2807.3,2807.0,3.56251]
[1740347191569,1.49005775,2807.3,2806.8,3.56269]
[1740347191864,1.49005775,2807.3,2807.1,0.1114988]
[1740347193367,1.49005775,2807.3,2806.9,3.56259]
[1740347194146,0.753,2807.5,2807.2,3.56226]
[1740347194737,6.59838499,2807.6,2807.3,3.56212]
[1740347195074,0.71135752,2807.4,2807.2,3.56224]
[1740347196772,0.71135752,2807.4,2807.3,3.56214]
[1740347197076,5.25,2807.6,2807.3,3.56214]
[1740347197775,5.25,2807.6,2807.1,0.7712]
[1740347197936,5.25,2807.6,2807.1,1.0127528]
[1740347198142,5.96956357,2807.6,2807.3,3.56206]
[1740347199275,5.96956357,2807.6,2807.2,3.6737482]
[1740347199485,5.16185499,2807.9,2807.2,3.6737482]
[1740347199486,0.753,2807.9,2807.5,3.56188]
[1740347199694,0.753,2807.9,2807.5,4.33308]
[1740347199853,0.753,2807.9,2807.7,3.56156]
[1740347200473,0.97904691,2808.0,2807.7,3.56156]
[1740347201394,0.97904691,2808.0,2807.6,3.56176]
[1740347203380,4.54032691,2808.0,2807.5,4.33305]
[1740347203585,0.7676,2807.8,2807.3,3.56202]
[1740347204172,4.32912,2807.8,2807.4,3.56199]
[1740347204494,4.32912,2807.8,2807.4,3.67346951]
[1740347204995,4.32912,2807.8,2807.4,0.11147951]
[1740347205196,3.56166,2807.7,2807.4,0.11147951]
[1740347205960,3.56166,2807.7,2807.3,0.55]
[1740347206597,3.56166,2807.7,2807.2,4.32648]
[1740347206894,7.12341,2807.7,2807.2,4.32648]
[1740347207108,3.56166,2807.7,2807.2,3.56218]
[1740347207397,3.56166,2807.7,2807.3,0.11148691]
[1740347208096,4.32961,2807.4,2807.3,0.11148691]
[1740347208864,4.32961,2807.4,2806.9,0.11148691]
[1740347209059,3.56228,2807.2,2806.9,0.11148691]
[1740347209289,0.7849,2807.0,2806.9,0.11148691]
[1740347210492,0.7849,2807.2,2807.0,3.56252]
[1740347210682,0.7849,2807.5,2807.1,3.56239]
[1740347210882,1.769772,2807.5,2807.1,3.56239]
[1740347211605,1.769772,2807.5,2807.2,3.56224]
[1740347211784,0.7849,2807.5,2807.3,3.56213]
[1740347212101,5.25,2807.6,2807.3,3.56213]
[1740347212605,9.50993909,2807.6,2807.1,4.36387]
[1740347212909,9.50993909,2807.6,2807.1,7.9262]
[1740347213073,5.94812909,2807.6,2807.1,4.36387]
[1740347213266,3.56191,2807.5,2807.1,3.56227]
[1740347214270,0.69812909,2807.6,2807.2,3.5622]
[1740347214670,0.69812909,2807.6,2807.3,3.56205]
[1740347214908,0.69812909,2807.6,2807.4,0.8261]
[1740347215107,1.08565994,2808.0,2807.5,3.56188]
[1740347215275,1.08565994,2808.0,2807.6,3.56174]
[1740347215608,4.64692994,2808.0,2807.6,3.56174]
[1740347215968,4.64692994,2808.0,2807.4,4.38809]
[1740347216175,4.27699422,2807.9,2807.4,3.56199]
[1740347216575,4.37693,2807.7,2807.3,3.5621]
[1740347216826,0.8153,2807.7,2807.4,3.56201]
[1740347217794,0.8153,2807.7,2807.4,7.12402]
[1740347217997,0.8153,2807.7,2807.6,3.56176]
[1740347219227,1.53081422,2807.9,2807.6,3.56176]
[1740347220779,1.53081422,2807.9,2807.6,3.5617]
[1740347220946,0.8153,2807.9,2807.7,3.5616]
[1740347222035,5.502,2808.1,2807.8,3.5615]
[1740347222245,6.3321,2808.1,2807.8,3.5615]
[1740347223826,7.02833165,2808.1,2807.8,3.5615]
[1740347224953,7.29897047,2808.1,2807.8,3.5615]
[1740347226140,7.29897047,2808.1,2807.8,3.5614]
[1740347226438,2.04897047,2808.1,2807.8,3.5614]
[1740347226837,2.04897047,2808.1,2807.8,7.12285]
[1740347227436,2.04897047,2808.1,2807.8,3.5614]
[1740347227643,2.04897047,2808.1,2807.8,7.12285]
[1740347228008,2.04897047,2808.1,2807.9,3.56137]
[1740347228502,2.04897047,2808.1,2807.8,7.12282]
[1740347228804,1.79697047,2808.1,2807.9,3.56137]
[1740347229337,1.79697047,2808.1,2807.7,3.56155]
[1740347229919,1.79697047,2808.1,2807.5,0.7793]
[1740347230122,1.79697047,2808.1,2807.9,3.5613]
[1740347230662,1.79697047,2808.1,2807.7,3.56153]
[1740347230820,1.79697047,2808.1,2807.7,7.12311]
[1740347232452,1.79697047,2808.1,2807.7,3.56153]
[1740347232654,1.79697047,2808.1,2807.9,3.56132]
[1740347234943,1.79697047,2808.1,2808.0,3.56125]
[1740347235142,0.96687047,2808.1,2808.0,3.56125]
[1740347235361,0.96687047,2808.1,2807.9,3.56132]
[1740347237434,0.96687047,2808.1,2807.9,3.56138]
[1740347239673,0.96687047,2808.1,2807.8,3.56138]
[1740347239854,0.96687047,2808.1,2807.9,3.56125]
[1740347240035,0.96687047,2808.1,2808.0,3.56125]
[1740347242943,0.7805,2808.3,2808.0,3.56125]
[1740347243252,0.7805,2808.3,2808.1,3.56111]
[1740347243491,0.26153489,2808.3,2808.1,3.56111]
[1740347243695,0.26153489,2808.3,2808.2,0.356111]
[1740347243895,0.7805,2808.5,2808.2,3.917081]
[1740347244102,0.7805,2808.5,2808.3,3.56075]
[1740347244401,0.7805,2808.5,2808.3,3.56077]
[1740347245594,0.69906721,2808.4,2808.3,3.56077]
[1740347248510,0.69906721,2808.4,2808.2,3.917101]
[1740347248709,0.69906721,2808.4,2808.2,0.356111]
[1740347248911,4.25980721,2808.4,2808.2,0.356111]
[1740347249089,4.25980721,2808.4,2807.9,0.8283]
[1740347249287,4.25980721,2808.4,2808.0,3.56125]
[1740347249614,0.69906721,2808.4,2808.0,7.12243]
[1740347249789,0.69906721,2808.4,2808.0,3.56118]
[1740347250317,4.25986721,2808.4,2808.0,3.56118]
[1740347250472,0.69906721,2808.4,2808.0,0.8350441]
[1740347250672,0.8247,2808.0,2807.4,9.75645]
[1740347250934,4.90899064,2807.9,2807.4,7.12389]
[1740347251108,4.90899064,2807.9,2807.5,3.56188]
[1740347251811,4.90899064,2807.9,2807.2,4.36669]
[1740347252133,3.5617,2807.7,2807.3,0.436669]
[1740347252437,3.56178,2807.6,2807.2,3.56219]
[1740347252572,2.0533008,2807.7,2807.2,3.56217]
[1740347252779,2.0533008,2807.7,2807.4,3.562]
[1740347253015,2.0533008,2807.7,2807.4,0.11148496]
[1740347253618,0.70569016,2807.7,2807.4,0.11148496]
[1740347253992,4.26733016,2807.7,2807.4,0.11148496]
[1740347254584,4.26733016,2807.7,2807.3,3.56209]
[1740347254784,4.26733016,2807.7,2807.2,6.56225]
[1740347255812,4.35686,2807.6,2807.2,3.0]
[1740347256016,3.56194,2807.5,2807.2,3.0]
[1740347256518,3.56194,2807.5,2807.3,0.11149128]
[1740347256818,4.35686,2807.6,2807.3,0.11149128]
[1740347257923,7.91871,2807.6,2807.3,0.11149128]